bitfinex-derivatives/quotes_BTCF0:USTF0_20250710
["timestamp","ask_amount","ask_price","bid_price","bid_amount"]
[1752184278491,0.73956255,116410.0,116400.0,0.43313877]
[1752184278685,0.83956255,116410.0,116400.0,0.43313877]
[1752184278884,0.12071782,116410.0,116400.0,0.43313877]
[1752184279086,0.12015781,116410.0,116400.0,0.79393877]
[1752184279792,0.102,116410.0,116400.0,0.79393877]
[1752184280289,0.102,116410.0,116400.0,0.43313877]
[1752184280489,0.102,116410.0,116400.0,0.79393877]
[1752184280695,0.002,116410.0,116400.0,0.79393877]
[1752184280991,0.002,116410.0,116400.0,0.99323877]
[1752184281891,0.0179802,116420.0,116400.0,1.19433877]
[1752184282084,0.0179802,116420.0,116410.0,0.97419877]
[1752184282294,0.0179802,116420.0,116410.0,0.97467877]
[1752184283287,1.52364,116450.0,116420.0,0.0485]
[1752184283490,0.1,116440.0,116430.0,0.3778]
[1752184283791,0.002,116450.0,116440.0,0.19079877]
[1752184283993,0.002,116450.0,116440.0,0.97789877]
[1752184285792,0.002,116450.0,116440.0,0.61709877]
[1752184286091,0.40394,116530.0,116480.0,0.05242457]
[1752184286393,0.35804473,116490.0,116480.0,0.46172457]
[1752184286595,0.40094,116510.0,116490.0,0.0485]
[1752184286793,0.45804473,116500.0,116490.0,0.0485]
[1752184287298,0.45804473,116500.0,116490.0,0.10092457]
[1752184287900,0.45804473,116500.0,116490.0,0.46172457]
[1752184288291,0.35804473,116510.0,116490.0,0.65532457]
[1752184288495,0.35860474,116510.0,116500.0,0.2421]
[1752184288698,0.10056001,116510.0,116500.0,0.29452457]
[1752184288894,0.35804473,116520.0,116500.0,0.24602457]
[1752184289202,0.10056001,116520.0,116510.0,0.28142457]
[1752184289496,0.37807869,116530.0,116510.0,0.64222457]
[1752184289798,0.12063397,116530.0,116520.0,0.28142457]
[1752184289991,0.47807869,116530.0,116520.0,0.10092457]
[1752184290191,0.4786387,116530.0,116520.0,0.10092457]
[1752184290598,0.4786387,116530.0,116520.0,0.46172457]
[1752184290807,0.4786387,116530.0,116520.0,0.10136457]
[1752184290999,0.4786387,116530.0,116520.0,0.28142457]
[1752184291200,0.12059397,116530.0,116520.0,0.28142457]
[1752184291395,0.47807869,116530.0,116520.0,0.28142457]
[1752184291596,0.16077397,116530.0,116520.0,0.64222457]
[1752184291805,0.90321869,116530.0,116520.0,0.64266457]
[1752184292003,0.9037787,116530.0,116520.0,0.64266457]
[1752184292202,0.8636387,116530.0,116520.0,0.28186457]
[1752184292401,0.8636387,116530.0,116520.0,0.28142457]
[1752184293004,0.8636387,116530.0,116520.0,0.64222457]
[1752184293199,0.4786387,116530.0,116520.0,0.28142457]
[1752184293902,0.16073397,116530.0,116520.0,0.10092457]
[1752184294106,0.54657396,116530.0,116520.0,0.10092457]
[1752184294400,0.90461869,116530.0,116520.0,0.10092457]
[1752184294601,0.54657396,116530.0,116520.0,0.10092457]
[1752184294793,0.86447869,116530.0,116520.0,0.10092457]
[1752184297206,0.86447869,116530.0,116520.0,0.28132457]
[1752184298104,0.8650387,116530.0,116520.0,0.10092457]
[1752184298306,0.04014,116520.0,116510.0,0.0485]
[1752184298602,0.14014,116510.0,116500.0,0.4093]
[1752184298808,0.85898473,116510.0,116500.0,0.05290457]
[1752184299006,2.40630474,116510.0,116490.0,0.0485]
[1752184299303,0.40094,116500.0,116490.0,0.0485]
[1752184299509,1.07684474,116500.0,116490.0,0.0485]
[1752184300007,0.71604474,116500.0,116490.0,0.0485]
[1752184300208,1.07684474,116500.0,116490.0,0.0485]
[1752184300908,1.07684474,116500.0,116480.0,0.05021696]
[1752184301100,1.47986,116490.0,116480.0,0.10264153]
[1752184301307,1.48046001,116490.0,116480.0,0.10264153]
[1752184301504,1.52060001,116490.0,116480.0,0.05021696]
[1752184301808,1.83850474,116490.0,116480.0,0.10264153]
[1752184302003,1.83850474,116490.0,116480.0,0.46344153]
[1752184302206,1.83850474,116490.0,116480.0,0.10264153]
[1752184302510,1.83850474,116490.0,116480.0,0.46388153]
[1752184302703,1.83850474,116490.0,116480.0,0.41145696]
[1752184302908,1.83850474,116490.0,116480.0,0.10264153]
[1752184303108,1.83850474,116490.0,116480.0,0.10308153]
[1752184303304,1.83850474,116490.0,116480.0,0.05414153]
[1752184303509,1.87804473,116490.0,116480.0,0.05414153]
[1752184303702,2.23884473,116490.0,116480.0,0.05414153]
[1752184303902,2.23884473,116490.0,116480.0,0.00171696]
[1752184304097,2.54870473,116490.0,116460.0,0.3608]
[1752184304304,0.04014,116460.0,116450.0,0.0485]
[1752184304511,0.04014,116450.0,116440.0,0.05414212]
[1752184304706,0.82058473,116450.0,116440.0,0.05414212]
[1752184305011,0.78044473,116450.0,116440.0,0.10264212]
[1752184305412,0.4224,116450.0,116440.0,0.10264212]
[1752184305613,0.78044473,116450.0,116440.0,0.46344212]
[1752184305806,0.78044473,116450.0,116440.0,0.10264212]
[1752184306007,0.78044473,116450.0,116440.0,0.23514212]
[1752184306213,1.61788473,116450.0,116440.0,0.23514212]
[1752184307107,1.80448473,116450.0,116440.0,0.23514212]
[1752184307311,1.93488473,116450.0,116440.0,0.23514212]
[1752184307617,1.97502473,116450.0,116440.0,0.23514212]
[1752184307911,2.33582473,116450.0,116440.0,0.10264212]
[1752184308304,2.33582473,116450.0,116440.0,0.05021755]
[1752184308513,2.33638474,116450.0,116440.0,0.10264212]
[1752184308811,2.77122785,116450.0,116440.0,0.00171755]
[1752184309204,3.13202785,116450.0,116440.0,0.00171755]
[1752184310110,2.77122785,116450.0,116440.0,0.00171755]
[1752184310608,2.77122785,116450.0,116430.0,0.01630358]
[1752184310911,0.03842,116430.0,116410.0,0.4093]
[1752184311108,0.2454,116420.0,116410.0,0.10136457]
[1752184311303,0.64184392,116420.0,116410.0,0.10092457]
[1752184311509,0.64240393,116420.0,116410.0,0.36422457]
[1752184311707,0.64240393,116420.0,116410.0,0.36466457]
[1752184311904,0.64240393,116420.0,116410.0,0.23976457]
[1752184312113,0.39700393,116420.0,116410.0,0.23932457]
[1752184312308,1.55708393,116420.0,116410.0,0.23932457]
[1752184312904,1.59550393,116420.0,116400.0,0.48741814]
[1752184313209,1.45986001,116420.0,116410.0,0.09794457]
[1752184313515,0.36136001,116420.0,116410.0,0.09794457]
[1752184313709,1.16076001,116420.0,116410.0,0.09794457]
[1752184314015,1.16076001,116420.0,116410.0,0.36024457]
[1752184314213,0.39700393,116420.0,116410.0,0.36024457]
[1752184316415,0.00056001,116420.0,116410.0,0.36024457]
[1752184316618,0.39644392,116420.0,116410.0,0.36024457]
[1752184317112,0.75724392,116440.0,116420.0,0.04552]
[1752184317317,0.75724392,116440.0,116430.0,0.31402457]
[1752184317519,0.79566392,116440.0,116430.0,0.35954457]
[1752184317917,0.75724392,116440.0,116430.0,0.35954457]
[1752184318116,1.52172,116440.0,116430.0,0.36018457]
[1752184318418,1.91816392,116440.0,116430.0,0.35954457]
[1752184319017,0.39708392,116440.0,116430.0,0.72034457]
[1752184319214,0.00064,116440.0,116430.0,0.72082457]
[1752184319414,0.39644392,116440.0,116430.0,1.08162457]
[1752184319607,0.00056001,116440.0,116430.0,1.08162457]
[1752184319812,0.39644392,116440.0,116430.0,1.08162457]
[1752184320013,0.00056001,116440.0,116430.0,1.08162457]
[1752184320209,0.0001,116440.0,116430.0,0.36002457]
[1752184320414,0.39654392,116440.0,116430.0,0.36002457]
[1752184320614,0.39710393,116440.0,116430.0,0.36002457]
[1752184321017,0.00066001,116440.0,116430.0,0.36002457]
[1752184321220,0.0001,116440.0,116430.0,0.36002457]
[1752184321721,0.0001,116440.0,116430.0,0.53179257]
[1752184322116,0.0001,116440.0,116430.0,0.78179257]
[1752184322516,0.002,116450.0,116440.0,0.04552]
[1752184322816,0.002,116450.0,116440.0,0.72084457]
[1752184323013,0.002,116450.0,116440.0,0.72128457]
[1752184323612,0.3608,116480.0,116440.0,1.09751657]
[1752184323816,0.75780393,116480.0,116470.0,0.09794457]
[1752184324014,0.46136001,116480.0,116470.0,0.09794457]
[1752184324220,0.00056001,116480.0,116470.0,0.35604457]
[1752184324421,0.38068819,116490.0,116480.0,0.04552]
[1752184324622,0.87769212,116490.0,116480.0,0.30362]
[1752184324821,0.87769212,116490.0,116480.0,0.30406]
[1752184325017,0.87769212,116490.0,116480.0,0.33839999]
[1752184325417,0.91621212,116490.0,116480.0,0.33839999]
[1752184325616,1.17731212,116490.0,116480.0,0.21459999]
[1752184325916,1.17731212,116490.0,116480.0,0.03433999]
[1752184326319,0.7809682,116490.0,116480.0,0.03433999]
[1752184326520,1.17741212,116490.0,116480.0,0.03433999]
[1752184326721,0.7809682,116490.0,116470.0,0.29772]
[1752184326915,0.52194392,116480.0,116470.0,0.35014457]
[1752184327118,0.56110392,116480.0,116470.0,0.23276457]
[1752184327311,0.56110392,116480.0,116470.0,0.09794457]
[1752184327517,0.41432887,116520.0,116480.0,0.04552]
[1752184327713,0.01836496,116520.0,116510.0,0.81744457]
[1752184328023,0.01788495,116520.0,116510.0,0.81792457]
[1752184328527,0.002,116530.0,116520.0,0.04552]
[1752184328717,0.002,116530.0,116520.0,0.57804457]
[1752184328913,0.002,116530.0,116520.0,0.74968457]
[1752184329424,0.002,116530.0,116520.0,0.75616804]
[1752184329617,0.002,116530.0,116520.0,1.03121196]
[1752184329818,0.002,116530.0,116520.0,0.63476804]
[1752184330021,0.002,116530.0,116520.0,0.74968457]
[1752184330221,0.002,116530.0,116520.0,0.57804457]
[1752184330715,0.002,116530.0,116520.0,0.67864457]
[1752184331619,0.002,116530.0,116520.0,0.68508727]
[1752184331828,0.002,116530.0,116520.0,0.67864457]
[1752184333113,0.002,116530.0,116520.0,0.92864457]
[1752184333318,0.2107,116550.0,116530.0,0.04552]
[1752184333516,0.2107,116550.0,116540.0,0.32614457]
[1752184333716,0.2107,116550.0,116540.0,0.32662457]
[1752184333926,0.60714392,116550.0,116540.0,0.32662457]
[1752184334223,0.60762392,116550.0,116540.0,0.32662457]
[1752184334621,0.21118,116550.0,116540.0,0.32662457]
[1752184334820,0.60714392,116550.0,116540.0,0.32662457]
[1752184335027,0.21126001,116550.0,116540.0,0.32662457]
[1752184335223,0.2107,116550.0,116540.0,0.32662457]
[1752184335721,0.1,116550.0,116540.0,0.32662457]
[1752184339124,0.49644392,116550.0,116540.0,0.32662457]
[1752184340230,0.2105,116550.0,116540.0,0.32662457]
[1752184340621,0.1,116550.0,116540.0,0.68742457]
[1752184342623,0.60364392,116550.0,116540.0,0.57772457]
[1752184342814,0.60364392,116550.0,116540.0,0.45712457]
[1752184343016,0.64216392,116550.0,116540.0,0.00048]
[1752184343222,0.03852,116540.0,116530.0,0.40723]
[1752184343426,0.64486392,116540.0,116530.0,0.04643]
[1752184343624,0.64486392,116540.0,116520.0,0.40894637]
[1752184343827,0.64486392,116540.0,116520.0,0.45927094]
[1752184343828,0.60634392,116530.0,116520.0,0.45927094]
[1752184344424,0.64486392,116530.0,116520.0,0.09847094]
[1752184344627,0.64486392,116530.0,116520.0,0.04814637]
[1752184344819,0.64486392,116530.0,116520.0,0.00171637]
[1752184345022,0.03852,116520.0,116500.0,0.04643]
[1752184345222,0.39644392,116510.0,116500.0,0.04643]
[1752184345417,0.43496392,116510.0,116500.0,0.04643]
[1752184345617,0.54196392,116510.0,116490.0,0.3608]
[1752184345825,0.90276392,116500.0,116490.0,0.09675457]
[1752184346026,0.90276392,116500.0,116490.0,0.04643]
[1752184346228,0.03852,116490.0,116480.0,0.04814696]
[1752184346422,0.64196392,116490.0,116480.0,0.04814696]
[1752184346823,1.00276392,116490.0,116480.0,0.04814696]
[1752184347022,1.00276392,116490.0,116480.0,0.00171696]
[1752184347623,2.16208392,116490.0,116480.0,0.00171696]
[1752184347830,0.03852,116480.0,116450.0,0.3608]
[1752184348030,0.2064,116480.0,116460.0,0.3608]
[1752184348232,0.1,116480.0,116470.0,0.56455457]
[1752184348535,0.10684,116490.0,116480.0,0.04643]
[1752184348727,0.1064,116490.0,116480.0,0.56455457]
[1752184350034,0.1084,116490.0,116480.0,0.56455457]
[1752184350335,0.1084,116490.0,116480.0,0.45755457]
[1752184350527,0.1084,116490.0,116480.0,0.55875457]
[1752184350725,0.1084,116490.0,116480.0,0.45755457]
[1752184351027,0.50484392,116490.0,116480.0,0.19795457]
[1752184352036,0.50484392,116490.0,116480.0,0.50843]
[1752184352231,0.65026392,116490.0,116480.0,0.40723]
[1752184352431,0.65026392,116490.0,116480.0,0.04643]
[1752184352740,0.25382,116490.0,116480.0,0.04643]
[1752184353034,0.65026392,116490.0,116470.0,0.3608]
[1752184353235,0.50434392,116480.0,116470.0,0.56385457]
[1752184353434,0.1079,116480.0,116470.0,0.56385457]
[1752184353634,0.50434392,116480.0,116470.0,0.56385457]
[1752184353832,0.50482392,116480.0,116470.0,0.56433457]
[1752184354536,0.10838,116480.0,116470.0,0.20353457]
[1752184354737,0.50434392,116480.0,116470.0,0.56385457]
[1752184355036,0.10842001,116480.0,116470.0,0.56437457]
[1752184355236,0.50434392,116480.0,116470.0,0.45807457]
[1752184355442,0.50486393,116480.0,116470.0,0.55877457]
[1752184357135,0.50486393,116480.0,116470.0,0.40775]
[1752184357331,0.64288393,116480.0,116470.0,0.0006062]
[1752184357639,0.24644001,116480.0,116470.0,0.0465162]
[1752184357837,0.64236392,116480.0,116470.0,0.0465162]
[1752184358038,0.64284393,116480.0,116470.0,0.0465162]
[1752184359227,0.74284393,116480.0,116470.0,0.0465162]
[1752184359432,0.74284393,116480.0,116470.0,0.0808582]
[1752184359631,1.90252393,116480.0,116470.0,0.0808582]
[1752184359831,1.90252393,116480.0,116470.0,0.0465162]
[1752184360331,1.90252393,116480.0,116470.0,8.62e-05]
[1752184361736,1.90260393,116480.0,116470.0,8.62e-05]
[1752184362040,0.74284393,116480.0,116470.0,8.62e-05]
[1752184362242,1.90260393,116480.0,116470.0,8.62e-05]
[1752184362640,0.34640001,116480.0,116470.0,8.62e-05]
[1752184362943,1.90260393,116480.0,116470.0,8.62e-05]
[1752184363333,1.90260393,116480.0,116470.0,0.3608862]
[1752184364241,1.90260393,116480.0,116470.0,8.62e-05]
[1752184364840,1.90260393,116480.0,116470.0,0.3608862]
[1752184365040,1.90260393,116480.0,116470.0,8.62e-05]
[1752184365244,1.90260393,116480.0,116450.0,0.53150113]
[1752184365245,1.86408393,116480.0,116450.0,0.53150113]
[1752184365438,0.43496392,116460.0,116450.0,0.42330113]
[1752184365952,0.24302,116460.0,116450.0,0.37687113]
[1752184366247,0.63946392,116460.0,116450.0,0.37687113]
[1752184366439,0.63946392,116460.0,116450.0,0.01607113]
[1752184367437,1.40282,116460.0,116450.0,0.01607113]
[1752184367637,1.79926392,116460.0,116450.0,0.01607113]
[1752184368038,1.79974393,116460.0,116450.0,0.01607113]
[1752184368833,1.40330001,116460.0,116450.0,0.01607113]
[1752184369038,1.79974393,116460.0,116450.0,0.01607113]
[1752184369944,0.03852,116450.0,116440.0,0.04814755]
[1752184370138,0.64016392,116450.0,116440.0,0.09847212]
[1752184370343,1.80052392,116450.0,116440.0,0.04814755]
[1752184370844,1.80052392,116450.0,116440.0,0.00171755]
[1752184372641,1.80052392,116450.0,116440.0,0.03606755]
[1752184373345,1.80052392,116450.0,116440.0,0.39686755]
[1752184373551,1.80052392,116450.0,116440.0,0.03606755]
[1752184373751,1.40408,116450.0,116440.0,0.03606755]
[1752184373952,1.80052392,116450.0,116440.0,0.03606755]
[1752184374343,1.83260392,116450.0,116440.0,0.00171755]
[1752184375746,1.83260392,116450.0,116440.0,0.36251755]
[1752184375954,1.83260392,116450.0,116440.0,0.00171755]
[1752184376954,0.67252392,116450.0,116440.0,0.00171755]
[1752184377151,1.83264392,116450.0,116440.0,0.00171755]
[1752184378454,0.07044,116440.0,116430.0,0.04643]
[1752184378751,0.66068392,116440.0,116430.0,0.09675457]
[1752184378957,1.82080392,116440.0,116430.0,0.09675457]
[1752184380257,0.07044,116430.0,116420.0,0.64775]
[1752184380454,0.56558392,116430.0,116420.0,0.54535]
[1752184380654,0.13062,116430.0,116420.0,0.59567457]
[1752184380851,0.52706392,116430.0,116420.0,0.69457457]
[1752184381250,1.58856392,116430.0,116420.0,0.69457457]
[1752184382758,0.42836392,116430.0,116420.0,0.69457457]
[1752184382958,1.58536392,116430.0,116420.0,0.69457457]
[1752184383157,1.58588393,116430.0,116420.0,0.69509457]
[1752184384951,0.46740393,116430.0,116420.0,0.69509457]
[1752184385253,1.22060001,116430.0,116420.0,0.69509457]
[1752184385757,1.61704393,116430.0,116420.0,0.69509457]
[1752184385961,1.61704393,116430.0,116420.0,0.59619457]
[1752184386158,1.61704393,116430.0,116420.0,0.69689457]
[1752184386363,1.22060001,116430.0,116420.0,0.69689457]
[1752184386556,1.61704393,116430.0,116420.0,0.69689457]
[1752184386753,1.57372393,116430.0,116420.0,0.69689457]
[1752184387856,1.61224393,116430.0,116420.0,0.69689457]
[1752184388459,1.31200001,116430.0,116420.0,0.56572]
[1752184388762,1.81214393,116430.0,116420.0,0.00052]
[1752184388956,1.70192393,116430.0,116420.0,0.13117457]
[1752184389256,1.70192393,116430.0,116420.0,0.22657457]
[1752184389856,1.70192393,116430.0,116410.0,0.44165]
[1752184389857,0.07044,116420.0,116410.0,0.44165]
[1752184390063,0.56308392,116420.0,116410.0,0.58737457]
[1752184390557,0.56308392,116420.0,116410.0,0.68267457]
[1752184390947,0.56308392,116420.0,116410.0,0.41112457]
[1752184391350,0.65748392,116420.0,116410.0,0.41112457]
[1752184391557,0.65748392,116420.0,116410.0,0.3608]
[1752184391961,0.26104,116420.0,116410.0,0.3608]
[1752184392150,0.61896392,116420.0,116400.0,0.36251814]
[1752184392352,1.89594392,116410.0,116400.0,0.41284271]
[1752184392658,1.89594392,116410.0,116400.0,0.45801814]
[1752184392864,1.89438392,116410.0,116400.0,0.50834271]
[1752184393068,1.89482392,116410.0,116400.0,0.50882271]
[1752184393265,0.76642392,116410.0,116400.0,0.50882271]
[1752184393464,1.79446392,116410.0,116400.0,0.41332271]
[1752184393664,1.86397578,116410.0,116400.0,0.41284271]
[1752184393865,1.32931186,116410.0,116400.0,0.49369271]
[1752184394170,0.59831578,116410.0,116400.0,0.68831271]
[1752184394468,1.72575578,116410.0,116400.0,0.68831271]
[1752184394660,0.49831578,116410.0,116400.0,0.68831271]
[1752184394852,1.62327578,116410.0,116400.0,0.68831271]
[1752184395264,1.72327578,116410.0,116400.0,0.68831271]
[1752184395465,1.76179578,116410.0,116400.0,0.68831271]
[1752184395862,1.46355186,116410.0,116400.0,0.68831271]
[1752184396064,1.46355186,116410.0,116400.0,0.58971271]
[1752184396266,1.85531578,116410.0,116400.0,0.58971271]
[1752184396563,1.85515578,116410.0,116400.0,0.49421271]
[1752184396963,2.2196797,116410.0,116400.0,0.00052]
[1752184397169,1.59860786,116410.0,116390.0,0.3608]
[1752184397462,0.68834392,116400.0,116390.0,0.3608]
[1752184397654,0.68882392,116400.0,116390.0,0.36128]
[1752184397860,0.29933801,116400.0,116390.0,0.00048]
[1752184398060,0.69530193,116400.0,116390.0,0.00048]
[1752184398364,0.29885801,116400.0,116380.0,0.3608]
[1752184398560,0.10695801,116400.0,116390.0,0.3608]
[1752184398762,1.61968193,116400.0,116390.0,0.41069]
[1752184398960,1.61968193,116400.0,116390.0,0.19421457]
[1752184399160,0.10695801,116400.0,116390.0,0.55501457]
[1752184399366,0.39644392,116400.0,116390.0,0.55501457]
[1752184399566,0.07151186,116410.0,116390.0,0.50512457]
[1752184399767,1.68315578,116410.0,116400.0,0.55501457]
[1752184399963,0.17151186,116410.0,116400.0,0.65041457]
[1752184400158,0.17151186,116410.0,116400.0,0.50469]
[1752184400368,0.56795578,116410.0,116400.0,0.55501457]
[1752184400569,0.002,116410.0,116400.0,0.65041457]
[1752184402164,0.39844392,116410.0,116400.0,0.65041457]
[1752184402574,0.002,116410.0,116400.0,0.65041457]
[1752184402774,0.39844392,116410.0,116400.0,0.65041457]
[1752184403068,0.39844392,116410.0,116400.0,0.55501457]
[1752184403274,0.00248,116410.0,116400.0,0.65519457]
[1752184403575,0.002,116410.0,116400.0,0.65519457]
[1752184403868,0.39844392,116410.0,116400.0,0.65519457]
[1752184404073,0.39892392,116410.0,116400.0,0.41117]
[1752184404261,0.00248,116410.0,116400.0,0.46149457]
[1752184404466,0.39844392,116410.0,116400.0,0.65869457]
[1752184404663,0.39892392,116410.0,116400.0,0.65869457]
[1752184405570,0.002,116450.0,116410.0,0.04567]
[1752184405770,0.00244,116450.0,116440.0,0.81759457]
[1752184405974,0.002,116450.0,116440.0,0.81823457]
[1752184406174,0.002,116490.0,116450.0,0.04567]
[1752184406476,0.49644392,116470.0,116460.0,0.14317]
[1752184406670,0.10052001,116470.0,116460.0,0.86477]
[1752184406869,0.1,116470.0,116460.0,1.08754257]
[1752184407270,0.1682776,116480.0,116460.0,1.04187257]
[1752184407470,0.002,116490.0,116470.0,0.64489457]
[1752184407771,0.1,116480.0,116470.0,0.40719]
[1752184408076,0.002,116490.0,116480.0,0.09599457]
[1752184408371,0.102,116490.0,116480.0,0.45679457]
[1752184408676,0.49844392,116490.0,116480.0,0.45743457]
[1752184409182,0.102,116490.0,116480.0,0.45743457]
[1752184409370,0.49844392,116490.0,116480.0,0.45743457]
[1752184410071,0.49854392,116490.0,116480.0,0.45743457]
[1752184411180,0.49854392,116490.0,116480.0,0.36144]
[1752184411181,0.76593993,116490.0,116480.0,0.36144]
[1752184411379,0.71529601,116490.0,116470.0,0.3608]
[1752184411585,0.2895,116480.0,116460.0,0.40647]
[1752184411786,0.49224392,116470.0,116460.0,0.45679457]
[1752184411978,0.49224392,116470.0,116460.0,0.81759457]
[1752184412178,0.49224392,116470.0,116460.0,0.76727]
[1752184412477,0.39644392,116470.0,116460.0,0.81759457]
[1752184412982,0.1919,116490.0,116470.0,0.04567]
[1752184413179,0.1919,116490.0,116480.0,0.3608]
[1752184413482,0.1958,116490.0,116480.0,0.00052]
[1752184413685,0.1,116480.0,116470.0,0.40647]
[1752184413886,0.1,116480.0,116470.0,0.40699]
[1752184414184,0.49644392,116480.0,116470.0,0.45731457]
[1752184414380,0.49688392,116480.0,116470.0,0.45731457]
[1752184414575,0.49688392,116480.0,116470.0,0.40699]
[1752184414776,0.49688392,116480.0,116470.0,0.00052]
[1752184414982,0.49688392,116480.0,116460.0,0.40647]
[1752184415174,0.097,116470.0,116460.0,0.441254]
[1752184415378,0.097,116470.0,116460.0,0.04611]
[1752184415579,0.39644392,116470.0,116460.0,0.41112457]
[1752184415776,0.39688392,116470.0,116460.0,0.36124]
[1752184415980,0.56861192,116470.0,116460.0,0.36124]
[1752184416285,0.272268,116470.0,116460.0,0.00044]
[1752184416486,0.1,116450.0,116440.0,0.40818755]
[1752184416681,0.49644392,116450.0,116440.0,0.44297555]
[1752184416881,0.49688392,116450.0,116440.0,0.40862755]
[1752184417489,0.49688392,116450.0,116440.0,0.36295755]
[1752184417884,0.10044,116450.0,116440.0,0.36295755]
[1752184418084,0.49644392,116450.0,116440.0,0.36295755]
[1752184418585,0.49644392,116450.0,116440.0,0.40862755]
[1752184419683,0.1,116450.0,116440.0,0.44297755]
[1752184419886,0.49644392,116450.0,116440.0,0.45895212]
[1752184421083,0.1,116450.0,116440.0,0.45895212]
[1752184422385,0.49644392,116450.0,116440.0,0.45895212]
[1752184423189,0.49698392,116450.0,116440.0,0.45895212]
[1752184423389,0.10054,116450.0,116440.0,0.36295755]
[1752184423586,0.49654392,116450.0,116440.0,0.36295755]
[1752184423778,0.49698392,116450.0,116440.0,0.36295755]
[1752184423983,0.49698392,116450.0,116440.0,0.45895212]
[1752184424285,0.49698392,116450.0,116440.0,0.40862755]
[1752184424484,0.10054,116450.0,116440.0,0.55105212]
[1752184424685,0.0021,116490.0,116470.0,0.04567]
[1752184424880,0.44631392,116520.0,116490.0,0.04567]
[1752184425080,0.00044,116520.0,116510.0,0.40647]
[1752184425283,0.05187,116530.0,116520.0,0.04567]
[1752184425488,0.44831392,116530.0,116520.0,0.40647]
[1752184425684,0.05247001,116530.0,116520.0,0.40707]
[1752184425897,0.05187,116530.0,116520.0,0.04627]
[1752184426090,0.44831392,116530.0,116520.0,0.04567]
[1752184426282,0.05231,116530.0,116520.0,0.04567]
[1752184426482,0.05187,116530.0,116520.0,0.079998]
[1752184426796,0.39844392,116530.0,116520.0,0.532998]
[1752184426987,0.39904393,116530.0,116520.0,0.533558]
[1752184427182,0.09670001,116530.0,116520.0,0.533558]
[1752184427389,0.0961,116530.0,116520.0,0.64055457]
[1752184427592,0.49254392,116530.0,116520.0,0.64055457]
[1752184427791,0.09666001,116530.0,116520.0,0.64055457]
[1752184427990,0.49310393,116530.0,116520.0,0.64055457]
[1752184428193,0.09666001,116530.0,116520.0,0.64055457]
[1752184428590,0.49310393,116530.0,116520.0,0.64055457]
[1752184428792,0.49254392,116530.0,116520.0,0.64055457]
[1752184428990,0.39844392,116530.0,116520.0,0.64055457]
[1752184429192,0.002,116530.0,116520.0,0.63999457]
[1752184429387,0.39844392,116530.0,116520.0,0.63999457]
[1752184429688,0.102,116530.0,116520.0,0.63999457]
[1752184429889,0.49844392,116530.0,116520.0,0.63999457]
[1752184430084,0.102,116530.0,116520.0,0.63999457]
[1752184430283,0.49944392,116530.0,116520.0,0.63999457]
[1752184430796,0.103,116530.0,116520.0,0.63999457]
[1752184431293,0.49944392,116530.0,116520.0,0.63999457]
[1752184431689,0.103,116530.0,116520.0,0.63999457]
[1752184432095,0.49944392,116530.0,116520.0,0.63999457]
[1752184433895,0.49988392,116530.0,116520.0,0.64055457]
[1752184434994,0.10344,116530.0,116520.0,0.64055457]
[1752184435291,0.49944392,116530.0,116520.0,0.64055457]
[1752184435497,0.50004393,116530.0,116520.0,0.64055457]
[1752184437096,0.10360001,116530.0,116520.0,0.64055457]
[1752184437297,0.49944392,116530.0,116520.0,0.64055457]
[1752184437496,0.50000393,116530.0,116520.0,0.64055457]
[1752184439097,0.50000393,116530.0,116520.0,0.59023]
[1752184439297,0.54746393,116530.0,116520.0,0.441358]
[1752184439602,0.64356393,116530.0,116520.0,0.36136]
[1752184440396,0.81520393,116530.0,116520.0,0.00056]
[1752184440596,0.04746,116520.0,116500.0,0.3608]
[1752184440802,0.54390392,116510.0,116500.0,0.3608]
[1752184440997,1.70342392,116510.0,116500.0,0.3608]
[1752184441199,2.37842792,116510.0,116480.0,0.40961696]
[1752184441406,0.44390392,116490.0,116480.0,0.40961696]
[1752184441590,0.54390392,116490.0,116480.0,0.44395296]
[1752184441899,0.33746,116490.0,116480.0,0.44395296]
[1752184442103,0.58664392,116490.0,116480.0,0.44395296]
[1752184442303,0.63410392,116490.0,116480.0,0.04881696]
[1752184442599,0.49644392,116490.0,116480.0,0.55604153]
[1752184443202,0.58724392,116490.0,116480.0,0.55604153]
[1752184443405,0.58724392,116490.0,116480.0,0.50571696]
[1752184443604,0.58724392,116490.0,116480.0,0.55604153]
[1752184443805,0.58768392,116490.0,116480.0,0.55648153]
[1752184444004,0.19124,116490.0,116480.0,0.55648153]
[1752184444207,0.58724392,116490.0,116480.0,0.55648153]
[1752184444507,0.58768392,116490.0,116480.0,0.55648153]
[1752184444899,0.19124,116490.0,116480.0,0.55648153]
[1752184445205,0.58724392,116490.0,116480.0,0.55648153]
[1752184445403,0.58768392,116490.0,116480.0,0.55648153]
[1752184445802,0.19124,116490.0,116480.0,0.55648153]
[1752184446004,0.58724392,116490.0,116480.0,0.55648153]
[1752184446204,0.19124,116490.0,116480.0,0.55648153]
[1752184446409,0.58724392,116490.0,116480.0,0.54049695]
[1752184446601,0.58772393,116490.0,116480.0,0.54049695]
[1752184446996,0.25951549,116490.0,116480.0,0.54049695]
[1752184447198,0.25903548,116490.0,116480.0,0.54049695]
[1752184447394,0.6554794,116490.0,116480.0,0.54049695]
[1752184447607,0.6559194,116490.0,116480.0,0.54049695]
[1752184448102,0.25947548,116490.0,116480.0,0.54049695]
[1752184448309,0.6554794,116490.0,116480.0,0.54049695]
[1752184448509,0.7029394,116490.0,116480.0,0.54049695]
[1752184448803,0.40039548,116490.0,116480.0,0.54049695]
[1752184448997,0.3608,116520.0,116490.0,0.0471]
[1752184448998,0.39644392,116520.0,116490.0,0.0471]
[1752184449199,0.39644392,116520.0,116510.0,0.4079]
[1752184449402,0.1922,116530.0,116510.0,0.45822457]
[1752184449605,0.2922,116530.0,116520.0,0.09742457]
[1752184449908,0.68864392,116530.0,116520.0,0.09742457]
[1752184450106,0.2922,116530.0,116520.0,0.19482457]
[1752184450307,0.68864392,116530.0,116520.0,0.19482457]
[1752184450506,0.59474392,116530.0,116520.0,0.19482457]
[1752184450803,0.1983,116530.0,116520.0,0.19482457]
[1752184451004,0.49944392,116530.0,116520.0,0.19482457]
[1752184451409,0.103,116530.0,116520.0,0.19482457]
[1752184451608,0.49944392,116530.0,116520.0,0.19482457]
[1752184451809,0.49944392,116530.0,116520.0,0.55562457]
[1752184452308,0.49944392,116530.0,116520.0,0.28802457]
[1752184452610,0.103,116530.0,116520.0,0.2377]
[1752184452809,0.49944392,116530.0,116520.0,0.28802457]
[1752184452998,0.103,116530.0,116520.0,0.64882457]
[1752184453201,0.103,116530.0,116520.0,0.64926457]
[1752184453410,0.49944392,116530.0,116520.0,0.64926457]